Workbook

Sheet Finish Times
A4: Minutes -------> | B4: 0 | C4: FLEET 1 | I4: 2017-09-09 | J4: <----Enter Race Date
A5: After | B5: =B4 -> 0 | C5: FLEET 2 | I5: 2017 Fall Series Race #2 | J5: <----Enter Race Description (EG: 2017 Spring Series Race #4)
A6: First -------------> | B6: 5 | C6: FLEET 3 | I6: Maloney, Tunnell | J6: <----Enter Race Committee Name
A7: Start | B7: =B6 -> 5 | C7: FLEET 4 | I7: Windward / Leeward Course 1X for Fleets I and II, 1X for Fleets III and IV | K7: <---Replace with description of the day's racing conditions
F8: Finish Time
A9: BOAT NAME | B9: FLEET | C9: BOAT | D9: SAIL # | E9: SKIPPER | F9: MINUTES | G9: SECONDS
A10: Alarming | B10: 4 | C10: S-2 9.2 | D10: 505 | E10: Oginz | F10: 47 | G10: 33 | H10: 1
A11: Always Something | B11: 3 | C11: Hunter 23 | D11: 1256 | E11: Gobble | F11: 44 | G11: 37 | H11: 2
A12: Bandit | B12: 1 | C12: J/24 | D12: 2792 | E12: Cliborne | F12: 24 | G12: 42 | H12: 3
A13: Boogie Board | B13: 1 | C13: J/24 | D13: 1742 | E13: Maloney | H13: 4
A14: Catch 22 | B14: 1 | C14: J22 | D14: 826 | E14: Schiable | F14: 25 | G14: 17 | H14: 5
A15: Dark Horse | B15: 1 | C15: J/24 | D15: 1024 | E15: Forqurean | F15: 22 | G15: 14 | H15: 6
A16: Destiny | B16: 2 | C16: Alerion 20 | D16: 6 | E16: Whitt | F16: 27 | G16: 35 | H16: 7
A17: Felicite | B17: 4 | C17: S-2 27 IB | D17: 13 | E17: Johnson | F17: 47 | G17: 42 | H17: 8
A18: Fenix | B18: 2 | C18: San Juan 24 | D18: 556 | E18: Firing | H18: 9
A19: Fever | B19: 3 | C19: Ericson 23 | D19: 269 | E19: Short | H19: 10
A20: Fools Game | B20: 1 | C20: Pearson 26 | D20: 1183 | E20: Hull | F20: 40 | G20: 4 | H20: 11
A21: Gotcha | B21: 2 | C21: S-2 6.7 | D21: 75 | E21: Theis | H21: 12
A22: Little Wing | B22: 4 | C22: Beneteau 29 | D22: 485 | E22: DeMestro | H22: 13
A23: Miss Virginia | B23: 3 | C23: Hunter 23.5 | D23: 1309 | E23: Perdue | H23: 14
A24: More Mischief | B24: 4 | C24: Beneteau 285 | D24: 144 | E24: Gearhart | H24: 15
A25: Rascal | B25: 1 | C25: J/24 | D25: 3511 | E25: Phillip | F25: 21 | G25: 33 | H25: 16
A26: Second Wind | B26: 3 | C26: Ericson 23 | D26: 470 | E26: Schraw | F26: 47 | G26: 20 | H26: 17
A27: Severence | B27: 1 | C27: C&C 25 | D27: 14755 | E27: Evans | H27: 18
A28: Stoic | B28: 2 | C28: Harbor 20 | D28: 330 | E28: Hemler | F28: 30 | G28: 58 | H28: 19
A29: StressLess | B29: 2 | C29: Harbor 20 | D29: 212 | E29: Toone | F29: 38 | G29: 14 | H29: 20
A30: Synergy | B30: 2 | C30: Harbor 20 | D30: 215 | E30: Miekina | H30: 21
A31: Time Warp | B31: 1 | C31: J/24 | D31: 1248 | E31: Sampson | H31: 22
A32: UDO | B32: 1 | C32: VX One | D32: 119 | E32: Gietl | F32: 24 | G32: 59 | H32: 23
A33: Willawaw | B33: 4 | C33: Columbia 29 | D33: 222 | E33: Conover | F33: 50 | G33: 26 | H33: 24
A34: Courageous | B34: 2 | C34: Harbor 20 | D34: 278 | E34: Tunnell/Malon | H34: 25
A35: Debra Ann | B35: 3 | C35: O'Day 25 CB | E35: Perdue | F35: 47 | G35: 5 | H35: 26
A36: Ie Ie Bang Bang | B36: 4 | C36: Hunter 365 | D36: 8 | E36: Gillespie | H36: 27
A37: z | H37: 28
A38: zz | H38: 29
A39: zzz | H39: 30
A40: zzzz | H40: 31

Sheet Finish Times (2) (hidden)
A4: MUST | C4: FLEET 1
A5: BE | C5: FLEET 2
A6: IN ALPHA | C6: FLEET 3
A7: ORDER | C7: FLEET 4
F8: Finish Time
A9: BOAT NAME | B9: FLEET | C9: BOAT | D9: SAIL # | E9: SKIPPER | F9: MINUTES | G9: SECONDS
A10: Bandit | B10: 1 | C10: J/24 | D10: 2792 | E10: Cliborne
A11: Blunder Bus | B11: 1 | C11: J/24 | E11: Hardy
A12: Boogie Board | B12: 1 | C12: J/24 | D12: 1742 | E12: Maloney
A13: Catch 22 | B13: 1 | C13: J22 | D13: 826 | E13: Schiable
A14: Dark Horse | B14: 1 | C14: J/24 | D14: 1024 | E14: Forqurean
A15: Fox Trot | B15: 1 | C15: Colgate 26 | E15: Haddon
A16: Rascal | B16: 1 | C16: J/24 | D16: 3511 | E16: Phillip
A17: Time Warp | B17: 1 | C17: J/24 | D17: 1248 | E17: Sampson
A18: UDO | B18: 1 | C18: VX One | D18: 119 | E18: Gietl
A19: Destiny | B19: 2 | C19: Alerion 20 | D19: 6 | E19: Whitt
A20: Fools Game | B20: 2 | C20: Pearson 26 | D20: 1183 | E20: Hull
A21: Gotcha | B21: 2 | C21: S-2 6.7 | D21: 75 | E21: Theis
A22: Majical | B22: 2 | C22: Cal 25 | D22: 1687 | E22: Witten
A23: Severence | B23: 2 | C23: C&C 25 | D23: 14755 | E23: Evans
A24: Stoic | B24: 2 | C24: Harbor 20 | D24: 330 | E24: Hemler
A25: StressLess | B25: 2 | C25: Harbor 20 | D25: 212 | E25: Breckenridge
A26: Synergy | B26: 2 | C26: Harbor 20 | D26: 215 | E26: Miekina
A27: Circle Back | B27: 3 | C27: Catalina 22 | D27: C22 | E27: Nash
A28: Miss Virginia | B28: 3 | C28: Hunter 23.5 | D28: 1309 | E28: Perdue
A29: Norse Raider | B29: 3 | C29: Ericson 23 | D29: 23 | E29: Short
A30: Second Wind | B30: 3 | C30: Ericson 23 | D30: 470 | E30: Schraw
A31: Tundra Swan | B31: 3 | C31: Hunter 23 | D31: 1256 | E31: Gobble
A32: Alarming | B32: 4 | C32: S-2 9.2 | D32: 505 | E32: Oginz
A33: BILL | B33: 4 | C33: Hunter 356 | E33: Gillespie
A34: Felicite | B34: 4 | C34: S-2 27 IB | D34: 13 | E34: Johnson
A35: Got to Go | B35: 4 | C35: Catalina 30 | D35: 97 | E35: Forrester
A36: Janet Anne | B36: 4 | C36: Catalina 25 | D36: 5155 | E36: Tunnell
A37: Little Wing | B37: 4 | C37: Beneteau 29 | D37: 485 | E37: DeMestro
A38: More Mischief | B38: 4 | C38: Beneteau 285 | D38: 144 | E38: Gearhart
A39: Willaway | B39: 4 | C39: Columbia 29 | D39: 222 | E39: Conover

Sheet Fleet 1
A1: Control Z to run macro | S1: 1 | Y1: Winner
Y2: =MIN(N10:N24) -> 20.14018692
A3: ='Finish Times'!B4 -> 0 | B3: <-----Minutes after first start
A5: Blackwater Yacht Racing Association - Race Results - Fleet 1 | Z5: Test
D6: Date: | E6: ='Finish Times'!I4 -> 2017-09-09 | F6: ='Finish Times'!I5 -> 2017 Fall Series Race #2 | K6: =CONCATENATE("RC:"," ",'Finish Times'!I6) -> RC: Maloney, Tunnell | Y6: new tcf = | Z6: should =
A7: ='Finish Times'!I7 -> Windward / Leeward Course 1X for Fleets I and II, 1X for Fleets III and IV | P7: Time | Q7: Time | R7: Approx | T7: Finish Calculations | Y7: Winner Adj Time | Z7: Winner Adj Time | AC7: # of Boats
G8: Handicap | I8: TCF | K8: Finish Time | M8: Calc(1) | N8: Adj.(2) | P8: Behind | Q8: Behind | R8: H'cap | T8: S for Spin | Y8: /observed | AC8: =MAX(AC10:AC24) -> 6
A9: Skipper | B9: Boat Name | C9: Initials | D9: Guest? | E9: Boat | F9: Sail # | G9: Spin* | H9: Non-Spin* | I9: Spin* | J9: Non-Spin* | K9: Min. | L9: Sec. | M9: Min.dd | N9: Time | O9: Place | P9: Winner | Q9: Boat Ahead | R9: to win | T9: N for non
A10: Cliborne | B10: Bandit | E10: J/24 | F10: 2792 | G10: 170 | H10: =IFERROR(G10+15,"") -> 185 | I10: =IF(T10 = "s",1000/(900+G10),"") -> 0.9345794393 | J10: =IF(T10 ="n",1000/(900+H10),"") ->  | K10: =IF($AK10>0,(VLOOKUP($B10,'Finish Times'!$A$10:$G$40,6,FALSE)),"") -> 24 | L10: =IF($AK10>0,(VLOOKUP($B10,'Finish Times'!$A$10:$G$40,7,FALSE)),"") -> 42 | M10: =IF(AK10>0,(K10+L10/60)-A$3," ") -> 24.7 | N10: =IFERROR(U10," ") -> 23.08411215 | O10: 3 | P10: =IFERROR(N10-$Y$2,"") -> 2.943925234 | Q10: 2.30529595 | R10: =IFERROR(ROUND((1000/Y10)-900,0),"") -> 326 | T10: s | U10: =IFERROR(IF(M10>0,IF(T10="s",M10*I10,0)+IF(T10="n",M10*J10,0)," "),"") -> 23.08411215 | V10: =IFERROR(RANK(N10,$N$10:$N$24,1),"") -> 3 | Y10: =IFERROR($Y$2/M10,"") -> 0.8153921828 | Z10: =IFERROR(M10*Y10,"") -> 20.14018692 | AB10: 1 | AC10: 3 | AD10: 2.943925234 | AE10: 2.30529595 | AH10: 55 | AI10: 39 | AK10: =(VLOOKUP($B10,'Finish Times'!$A$10:$G$40,6,FALSE)) -> 24
A11: Forqurean | B11: Dark Horse | E11: J/24 | F11: 1024 | G11: 170 | H11: 185 | I11: 0.9345794393 | J11: =IF(T11 ="n",1000/(900+H11),"") ->  | K11: =IF($AK11>0,(VLOOKUP($B11,'Finish Times'!$A$10:$G$40,6,FALSE)),"") -> 22 | L11: =IF($AK11>0,(VLOOKUP($B11,'Finish Times'!$A$10:$G$40,7,FALSE)),"") -> 14 | M11: =IF(AK11>0,(K11+L11/60)-A$3," ") -> 22.23333333 | N11: 20.7788162 | O11: 2 | P11: 0.6386292835 | Q11: 0.6386292835 | R11: 204 | T11: s | U11: =IFERROR(IF(M11>0,IF(T11="s",M11*I11,0)+IF(T11="n",M11*J11,0)," "),"") -> 20.7788162 | V11: 2 | Y11: 0.9058554835 | Z11: =IFERROR(M11*Y11,"") -> 20.14018692 | AB11: 2 | AC11: 2 | AD11: 0.6386292835 | AE11: 0.6386292835 | AH11: 56 | AI11: 22 | AK11: =(VLOOKUP($B11,'Finish Times'!$A$10:$G$40,6,FALSE)) -> 22
A12: Maloney | B12: Boogie Board | E12: J/24 | F12: 1742 | G12: 170 | H12: 185 | I12: 0.9345794393 | J12: =IF(T12 ="n",1000/(900+H12),"") ->  | K12: =IF($AK12>0,(VLOOKUP($B12,'Finish Times'!$A$10:$G$40,6,FALSE)),"") ->  | L12: =IF($AK12>0,(VLOOKUP($B12,'Finish Times'!$A$10:$G$40,7,FALSE)),"") ->  | T12: s | AB12: 2 | AH12: 54 | AI12: 9 | AK12: =(VLOOKUP($B12,'Finish Times'!$A$10:$G$40,6,FALSE)) -> 0
A13: Phillip | B13: Rascal | E13: J/24 | F13: 3511 | G13: 170 | H13: 185 | I13: 0.9345794393 | J13: =IF(T13 ="n",1000/(900+H13),"") ->  | K13: =IF($AK13>0,(VLOOKUP($B13,'Finish Times'!$A$10:$G$40,6,FALSE)),"") -> 21 | L13: =IF($AK13>0,(VLOOKUP($B13,'Finish Times'!$A$10:$G$40,7,FALSE)),"") -> 33 | M13: 21.55 | N13: 20.14018692 | O13: 1 | P13: 0 | R13: 170 | T13: s | U13: 20.14018692 | V13: 1 | Y13: 0.9345794393 | Z13: 20.14018692 | AB13: 3 | AC13: 1 | AD13: 0 | AH13: 62 | AI13: 59 | AK13: =(VLOOKUP($B13,'Finish Times'!$A$10:$G$40,6,FALSE)) -> 21
A14: Sampson | B14: Time Warp | E14: J/24 | F14: 1248 | G14: 170 | H14: 185 | I14: 0.9345794393 | J14: =IF(T14 ="n",1000/(900+H14),"") ->  | K14: =IF($AK14>0,(VLOOKUP($B14,'Finish Times'!$A$10:$G$40,6,FALSE)),"") ->  | L14: =IF($AK14>0,(VLOOKUP($B14,'Finish Times'!$A$10:$G$40,7,FALSE)),"") ->  | T14: s | AB14: 3 | AH14: 59 | AI14: 12 | AK14: =(VLOOKUP($B14,'Finish Times'!$A$10:$G$40,6,FALSE)) -> 0
A15: Schiable | B15: Catch 22 | E15: J22 | F15: 826 | G15: 177 | H15: 192 | I15: 0.9285051068 | K15: =IF($AK15>0,(VLOOKUP($B15,'Finish Times'!$A$10:$G$40,6,FALSE)),"") -> 25 | L15: =IF($AK15>0,(VLOOKUP($B15,'Finish Times'!$A$10:$G$40,7,FALSE)),"") -> 17 | M15: 25.28333333 | N15: 23.47570412 | O15: 4 | P15: 3.3355172 | Q15: 0.3915919668 | R15: 355 | T15: s | U15: 23.47570412 | V15: 4 | Y15: 0.7965795748 | Z15: 20.14018692 | AB15: 4 | AC15: 4 | AD15: 3.3355172 | AE15: 0.3915919668 | AH15: 56 | AI15: 58 | AK15: =(VLOOKUP($B15,'Finish Times'!$A$10:$G$40,6,FALSE)) -> 25
A16: Gietl | B16: UDO | E16: VX One | F16: 119 | G16: 103 | H16: 118 | I16: 0.9970089731 | K16: =IF($AK16>0,(VLOOKUP($B16,'Finish Times'!$A$10:$G$40,6,FALSE)),"") -> 24 | L16: =IF($AK16>0,(VLOOKUP($B16,'Finish Times'!$A$10:$G$40,7,FALSE)),"") -> 59 | M16: 24.98333333 | N16: 24.90860751 | O16: 5 | P16: 4.768420595 | Q16: 1.432903394 | R16: 340 | T16: s | U16: 24.90860751 | V16: 5 | Y16: 0.8061449066 | Z16: 20.14018692 | AB16: 5 | AC16: 5 | AD16: 4.768420595 | AE16: 1.432903394 | AK16: =(VLOOKUP($B16,'Finish Times'!$A$10:$G$40,6,FALSE)) -> 24
A17: Evans | B17: Severence | E17: C&C 25 | F17: 14755 | G17: 218 | H17: 233 | I17: =IF(T17 = "s",1000/(900+G17),"") -> 0.8944543828 | J17: =IF(T17 ="n",1000/(900+H17),"") ->  | K17: =IF(AK17>0,VLOOKUP($B17,'Finish Times'!$A$10:$G$40,6,FALSE),"") ->  | L17: =IF(AK17>0,VLOOKUP($B17,'Finish Times'!$A$10:$G$40,7,FALSE),"") ->  | T17: s | AB17: 6 | AH17: 54 | AI17: 9 | AK17: =VLOOKUP($B17,'Finish Times'!$A$10:$G$40,6,FALSE) -> 0
A18: Hull | B18: Fools Game | E18: Pearson 26 | F18: 1183 | G18: 216 | H18: =IFERROR(G18+15,"") -> 231 | I18: =IF(T18 = "s",1000/(900+G18),"") -> 0.8960573477 | J18: =IF(T18 ="n",1000/(900+H18),"") ->  | K18: =IF(AK18>0,VLOOKUP($B18,'Finish Times'!$A$10:$G$40,6,FALSE),"") -> 40 | L18: =IF(AK18>0,VLOOKUP($B18,'Finish Times'!$A$10:$G$40,7,FALSE),"") -> 4 | M18: 40.06666667 | N18: 35.90203106 | O18: 6 | P18: 15.76184415 | Q18: 10.99342355 | R18: 1089 | T18: s | U18: 35.90203106 | V18: 6 | Y18: 0.5026668947 | Z18: 20.14018692 | AB18: 9 | AC18: 6 | AD18: 15.76184415 | AE18: 10.99342355 | AK18: =(VLOOKUP($B18,'Finish Times'!$A$10:$G$40,6,FALSE)) -> 40
M19: =IF(K19>0,(K19+L19/60)-A$3," ") ->  | N19: =IFERROR(U19," ") ->  | O19: =IFERROR(V19," ") ->  | P19: =IFERROR(N19-$Y$2,"") ->  | R19: =IFERROR(ROUND((1000/Y19)-900,0),"") ->  | T19: n | AB19: 10
T20: n | AB20: 11
T21: n | AB21: 12
M22: =IF(K22>0,(K22+L22/60)-A$3," ") ->  | T22: n | AB22: 13
T23: n | AB23: 14
T24: n | AB24: 15
A25: Race Start Time | N25: FLEET ONE | Q25: 0 | AB25: 16 | AE25: 0
A26: (In case race timer has issues, use clock time as backup and do the math) | Q26: 0 | AB26: 17 | AE26: 0
A27: (1) Convert seconds to decimal equivalent - see reference sheet | Q27: 0 | AB27: 18 | AE27: 0
A28: (2) Multiply time in minutes by circled TCF | Q28: 0 | AB28: 19 | AE28: 0
Q29: 0 | AE29: 0
A30: FLEET ONE | M30: RACE #

Sheet Fleet 2
S1: 2 | Y1: Winner
Y2: =MIN(N10:N22) -> 24.3453957
A3: ='Finish Times'!B5 -> 0 | B3: <-----Minutes after first start
A5: Blackwater Yacht Racing Association - Race Results - Fleet 2 | S5: 2 | Z5: Test
D6: Date: | E6: ='Finish Times'!I4 -> 2017-09-09 | F6: ='Finish Times'!I5 -> 2017 Fall Series Race #2 | K6: =CONCATENATE("RC:"," ",'Finish Times'!I6) -> RC: Maloney, Tunnell | Y6: new tcf = | Z6: should =
A7: ='Finish Times'!I7 -> Windward / Leeward Course 1X for Fleets I and II, 1X for Fleets III and IV | P7: Time | Q7: Time | R7: Approx | T7: Finish Calculations | Y7: Winner Adj Time | Z7: Winner Adj Time | AC7: # of Boats
G8: Handicap | I8: TCF | K8: Finish Time | M8: Calc(1) | N8: Adj.(2) | P8: Behind | Q8: Behind | R8: H'cap | T8: S for Spin | Y8: /observed | AC8: =MAX(AC10:AC22) -> 3
A9: Skipper | B9: Boat Name | C9: Initials | D9: Guest? | E9: Boat | F9: Sail # | G9: Spin* | H9: Non-Spin* | I9: Spin* | J9: Non-Spin* | K9: Min. | L9: Sec. | M9: Min.dd | N9: Time | O9: Place | P9: Winner | Q9: Boat Ahead | R9: to win | T9: N for non
A10: Theis | B10: Gotcha | E10: S-2 6.7 | F10: 75 | G10: 208 | H10: =IFERROR(G10+15,"") -> 223 | I10: =IF(T10 = "s",1000/(900+G10),"") -> 0.9025270758 | J10: =IF(T10 ="n",1000/(900+H10),"") ->  | K10: =IF(AK10>0,VLOOKUP($B10,'Finish Times'!$A$10:$G$40,6,FALSE),"") ->  | L10: =IF(AK10>0,VLOOKUP($B10,'Finish Times'!$A$10:$G$40,7,FALSE),"") ->  | M10: =IF(AK10>0,(K10+L10/60)-A$3," ") ->  | N10: =IFERROR(U10," ") ->  | O10: =IFERROR(V10," ") ->  | P10: =IFERROR(N10-$Y$2,"") ->  | R10: =IFERROR(ROUND((1000/Y10)-900,0),"") ->  | T10: s | U10: =IFERROR(IF(M10>0,IF(T10="s",M10*I10,0)+IF(T10="n",M10*J10,0)," "),"") ->  | V10: =IFERROR(RANK(N10,$N$10:$N$22,1),"") ->  | Y10: =IFERROR($Y$2/M10,"") ->  | Z10: =IFERROR(M10*Y10,"") ->  | AB10: 1 | AH10: 55 | AI10: 39 | AK10: =VLOOKUP($B10,'Finish Times'!$A$10:$G$40,6,FALSE) -> 0
A11: Firing | B11: Fenix | E11: San Juan 24 | F11: 556 | G11: 218 | H11: =IFERROR(G11+15,"") -> 233 | I11: =IF(T11 = "s",1000/(900+G11),"") -> 0.8944543828 | J11: =IF(T11 ="n",1000/(900+H11),"") ->  | K11: =IF(AK11>0,VLOOKUP($B11,'Finish Times'!$A$10:$G$40,6,FALSE),"") ->  | L11: =IF(AK11>0,VLOOKUP($B11,'Finish Times'!$A$10:$G$40,7,FALSE),"") ->  | N11: =IFERROR(U11," ") ->  | O11: =IFERROR(V11," ") ->  | P11: =IFERROR(N11-$Y$2,"") ->  | R11: =IFERROR(ROUND((1000/Y11)-900,0),"") ->  | T11: s | AB11: 5 | AH11: 62 | AI11: 59 | AK11: =VLOOKUP($B11,'Finish Times'!$A$10:$G$40,6,FALSE) -> 0
A12: Whitt | B12: Destiny | E12: Alerion 20 | F12: 6 | G12: 218 | H12: =IFERROR(G12+15,"") -> 233 | J12: 0.8826125331 | K12: =IF(AK12>0,VLOOKUP($B12,'Finish Times'!$A$10:$G$40,6,FALSE),"") -> 27 | L12: =IF(AK12>0,VLOOKUP($B12,'Finish Times'!$A$10:$G$40,7,FALSE),"") -> 35 | M12: 27.58333333 | N12: =IFERROR(U12," ") -> 24.3453957 | O12: =IFERROR(V12," ") -> 1 | P12: =IFERROR(N12-$Y$2,"") -> 0 | R12: =IFERROR(ROUND((1000/Y12)-900,0),"") -> 233 | T12: n | U12: 24.3453957 | V12: 1 | Y12: 0.8826125331 | Z12: 24.3453957 | AB12: 6 | AC12: 1 | AD12: 0 | AH12: 59 | AI12: 12 | AK12: =VLOOKUP($B12,'Finish Times'!$A$10:$G$40,6,FALSE) -> 27
A13: Miekina | B13: Synergy | E13: Harbor 20 | F13: 215 | G13: 220 | H13: =IFERROR(G13+15,"") -> 235 | I13: =IF(T13 = "s",1000/(900+G13),"") ->  | J13: =IF(T13 ="n",1000/(900+H13),"") -> 0.8810572687 | K13: =IF(AK13>0,VLOOKUP($B13,'Finish Times'!$A$10:$G$40,6,FALSE),"") ->  | L13: =IF(AK13>0,VLOOKUP($B13,'Finish Times'!$A$10:$G$40,7,FALSE),"") ->  | T13: n | AB13: 7 | AH13: 56 | AI13: 58 | AK13: =VLOOKUP($B13,'Finish Times'!$A$10:$G$40,6,FALSE) -> 0
A14: Hemler | B14: Stoic | E14: Harbor 20 | F14: 330 | G14: 220 | H14: 235 | J14: 0.8810572687 | K14: =IF(AK14>0,VLOOKUP($B14,'Finish Times'!$A$10:$G$40,6,FALSE),"") -> 30 | L14: =IF(AK14>0,VLOOKUP($B14,'Finish Times'!$A$10:$G$40,7,FALSE),"") -> 58 | M14: 30.96666667 | N14: 27.28340675 | O14: 2 | P14: 2.93801105 | Q14: 2.93801105 | R14: 372 | T14: n | U14: 27.28340675 | V14: 2 | Y14: 0.7861807009 | Z14: 24.3453957 | AB14: 8 | AC14: 2 | AD14: 2.93801105 | AE14: 2.93801105 | AH14: 64 | AI14: 47 | AK14: =VLOOKUP($B14,'Finish Times'!$A$10:$G$40,6,FALSE) -> 30
A15: Toone | B15: StressLess | E15: Harbor 20 | F15: 212 | G15: 220 | H15: 235 | J15: 0.8810572687 | K15: =IF(AK15>0,VLOOKUP($B15,'Finish Times'!$A$10:$G$40,6,FALSE),"") -> 38 | L15: =IF(AK15>0,VLOOKUP($B15,'Finish Times'!$A$10:$G$40,7,FALSE),"") -> 14 | M15: 38.23333333 | N15: 33.68575624 | O15: 3 | P15: 9.340360536 | Q15: 6.402349486 | R15: 670 | T15: n | U15: 33.68575624 | V15: 3 | Y15: 0.6367583881 | Z15: 24.3453957 | AB15: 9 | AC15: 3 | AD15: 9.340360536 | AE15: 6.402349486 | AK15: =VLOOKUP($B15,'Finish Times'!$A$10:$G$40,6,FALSE) -> 38
A16: Tunnell | B16: Courageous | E16: Harbor 20 | F16: 278 | G16: 220 | H16: 235 | J16: 0.8810572687 | K16: =IF(AK16>0,VLOOKUP($B16,'Finish Times'!$A$10:$G$40,6,FALSE),"") ->  | L16: =IF(AK16>0,VLOOKUP($B16,'Finish Times'!$A$10:$G$40,7,FALSE),"") ->  | T16: n | AB16: 10 | AK16: =VLOOKUP($B16,'Finish Times'!$A$10:$G$40,6,FALSE) -> 0
T17: s | AB17: 11 | AK17: =VLOOKUP($B17,'Finish Times'!$A$10:$G$40,6,FALSE) -> 
N18: =IFERROR(U18," ") ->  | P18: =IFERROR(N18-$Y$2,"") ->  | R18: =IFERROR(ROUND((1000/Y18)-900,0),"") ->  | T18: s | AB18: 12 | AK18: =VLOOKUP($B18,'Finish Times'!$A$10:$G$40,6,FALSE) -> 
P19: =IFERROR(N19-$Y$2,"") ->  | R19: =IFERROR(ROUND((1000/Y19)-900,0),"") ->  | T19: n | AB19: 13 | AK19: =VLOOKUP($B19,'Finish Times'!$A$10:$G$40,6,FALSE) -> 
P20: =IFERROR(N20-$Y$2,"") ->  | R20: =IFERROR(ROUND((1000/Y20)-900,0),"") ->  | T20: n | AB20: 14 | AK20: =VLOOKUP($B20,'Finish Times'!$A$10:$G$40,6,FALSE) -> 
P21: =IFERROR(N21-$Y$2,"") ->  | R21: =IFERROR(ROUND((1000/Y21)-900,0),"") ->  | T21: n | AB21: 15 | AK21: =VLOOKUP($B21,'Finish Times'!$A$10:$G$40,6,FALSE) -> 
P22: =IFERROR(N22-$Y$2,"") ->  | R22: =IFERROR(ROUND((1000/Y22)-900,0),"") ->  | T22: n | AK22: =VLOOKUP($B22,'Finish Times'!$A$10:$G$40,6,FALSE) -> 
A23: Race Start Time | N23: FLEET TWO
A24: (In case race timer has issues, use clock time as backup and do the math) | Q24: 0 | AE24: 0
A25: (1) Convert seconds to decimal equivalent - see reference sheet | Q25: 0 | AE25: 0
A26: (2) Multiply time in minutes by circled TCF | Q26: 0 | AE26: 0
Q27: 0 | AE27: 0
A28: FLEET TWO | M28: RACE # | Q28: 0 | AE28: 0

Sheet Fleet 3
S1: 3 | Y1: Winner
Y2: =MIN(N10:N24) -> 34.21128382
A3: ='Finish Times'!B6 -> 5 | B3: <-----Minutes after first start
A5: Blackwater Yacht Racing Association - Race Results - Fleet 3 | Z5: Test
E6: ='Finish Times'!I4 -> 2017-09-09 | F6: ='Finish Times'!I5 -> 2017 Fall Series Race #2 | K6: =CONCATENATE("RC:"," ",'Finish Times'!I6) -> RC: Maloney, Tunnell | Y6: new tcf = | Z6: should =
A7: ='Finish Times'!I7 -> Windward / Leeward Course 1X for Fleets I and II, 1X for Fleets III and IV | P7: Time | Q7: Time | R7: Approx | T7: Finish Calculations | Y7: Winner Adj Time | Z7: Winner Adj Time | AC7: # of Boats
G8: Handicap | I8: TCF | K8: Finish Time | M8: Calc(1) | N8: Adj.(2) | P8: Behind | Q8: Behind | R8: H'cap | T8: S for Spin | Y8: /observed | AC8: =MAX(AC10:AC24) -> 3
A9: Skipper | B9: Boat Name | C9: Initials | D9: Guest? | E9: Boat | F9: Sail # | G9: Spin* | H9: Non-Spin* | I9: Spin* | J9: Non-Spin* | K9: Min. | L9: Sec. | M9: Min.dd | N9: Time | O9: Place | P9: Winner | Q9: Boat Ahead | R9: to win | T9: N for non
A10: Perdue | B10: Miss Virginia | E10: Hunter 23.5 | F10: 1309 | G10: 243 | H10: =IFERROR(G10+15,"") -> 258 | I10: =IF(T10 = "s",1000/(900+G10),"") -> 0.8748906387 | J10: =IF(T10 ="n",1000/(900+H10),"") ->  | K10: =IF(AK10>0,VLOOKUP($B10,'Finish Times'!$A$10:$G$40,6,FALSE)," ") ->  | L10: =IF(AK10>0,VLOOKUP($B10,'Finish Times'!$A$10:$G$40,7,FALSE)," ") ->  | M10: =IF(AK10>0,(K10+L10/60)-A$3," ") ->  | N10: =IFERROR(U10," ") ->  | P10: =IFERROR(N10-$Y$2,"") ->  | R10: =IFERROR(ROUND((1000/Y10)-900,0),"") ->  | T10: s | U10: =IFERROR(IF(M10>0,IF(T10="s",M10*I10,0)+IF(T10="n",M10*J10,0)," "),"") ->  | V10: =IFERROR(RANK(N10,$N$10:$N$24,1),"") ->  | Y10: =IFERROR($Y$2/M10,"") ->  | Z10: =IFERROR(M10*Y10,"") ->  | AB10: 1 | AH10: 55 | AI10: 39 | AK10: =VLOOKUP($B10,'Finish Times'!$A$10:$G$40,6,FALSE) -> 0
A11: Schraw | B11: Second Wind | E11: Ericson 23 | F11: 470 | G11: 241 | H11: =IFERROR(G11+15,"") -> 256 | I11: =IF(T11 = "s",1000/(900+G11),"") ->  | J11: =IF(T11 ="n",1000/(900+H11),"") -> 0.8650519031 | K11: =IF(AK11>0,VLOOKUP($B11,'Finish Times'!$A$10:$G$40,6,FALSE)," ") -> 47 | L11: =IF(AK11>0,VLOOKUP($B11,'Finish Times'!$A$10:$G$40,7,FALSE)," ") -> 20 | M11: =IF(AK11>0,(K11+L11/60)-A$3," ") -> 42.33333333 | N11: 36.62053057 | O11: 3 | P11: 2.409246742 | Q11: 0.1215424183 | R11: 337 | T11: n | U11: =IFERROR(IF(M11>0,IF(T11="s",M11*I11,0)+IF(T11="n",M11*J11,0)," "),"") -> 36.62053057 | V11: =IFERROR(RANK(N11,$N$10:$N$24,1),"") -> 3 | Y11: 0.8081405627 | Z11: =IFERROR(M11*Y11,"") -> 34.21128382 | AB11: 2 | AC11: 3 | AD11: 2.409246742 | AE11: 0.1215424183 | AH11: 56 | AI11: 22 | AK11: =VLOOKUP($B11,'Finish Times'!$A$10:$G$40,6,FALSE) -> 47
A12: Short | B12: Fever | E12: Ericson 23 | F12: 269 | G12: =241+3 -> 244 | H12: 259 | I12: =IF(T12 = "s",1000/(900+G12),"") ->  | J12: =IF(T12 ="n",1000/(900+H12),"") -> 0.8628127696 | K12: =IF(AK12>0,VLOOKUP($B12,'Finish Times'!$A$10:$G$40,6,FALSE)," ") ->  | L12: =IF(AK12>0,VLOOKUP($B12,'Finish Times'!$A$10:$G$40,7,FALSE)," ") ->  | T12: n | AB12: 3 | AH12: 54 | AI12: 9 | AK12: =VLOOKUP($B12,'Finish Times'!$A$10:$G$40,6,FALSE) -> 0
A13: Gobble | B13: Always Something | E13: Hunter 23 | F13: 1256 | G13: 243 | H13: 258 | I13: =IF(T13 = "s",1000/(900+G13),"") ->  | J13: =IF(T13 ="n",1000/(900+H13),"") -> 0.8635578584 | K13: =IF(AK13>0,VLOOKUP($B13,'Finish Times'!$A$10:$G$40,6,FALSE)," ") -> 44 | L13: =IF(AK13>0,VLOOKUP($B13,'Finish Times'!$A$10:$G$40,7,FALSE)," ") -> 37 | M13: 39.61666667 | N13: 34.21128382 | O13: 1 | P13: 0 | R13: 258 | T13: n | U13: 34.21128382 | V13: 1 | Y13: 0.8635578584 | Z13: 34.21128382 | AB13: 4 | AC13: 1 | AD13: 0 | AH13: 62 | AI13: 59 | AK13: =VLOOKUP($B13,'Finish Times'!$A$10:$G$40,6,FALSE) -> 44
A14: Perdue | B14: Debra Ann | E14: O'Day 25 CB | F14: 13092 | G14: 238 | H14: 253 | I14: =IF(T14 = "s",1000/(900+G14),"") ->  | J14: =IF(T14 ="n",1000/(900+H14),"") -> 0.8673026886 | K14: =IF(AK14>0,VLOOKUP($B14,'Finish Times'!$A$10:$G$40,6,FALSE)," ") -> 47 | L14: =IF(AK14>0,VLOOKUP($B14,'Finish Times'!$A$10:$G$40,7,FALSE)," ") -> 5 | M14: 42.08333333 | N14: 36.49898815 | O14: 2 | P14: 2.287704324 | Q14: 2.287704324 | R14: 330 | T14: n | U14: 36.49898815 | V14: 2 | Y14: 0.8129413978 | Z14: 34.21128382 | AB14: 5 | AC14: 2 | AD14: 2.287704324 | AE14: 2.287704324 | AH14: 59 | AI14: 12 | AK14: =VLOOKUP($B14,'Finish Times'!$A$10:$G$40,6,FALSE) -> 47
N15: =IFERROR(U15," ") ->  | O15: =IFERROR(V15," ") ->  | P15: =IFERROR(N15-$Y$2,"") ->  | R15: =IFERROR(ROUND((1000/Y15)-900,0),"") ->  | T15: n | AB15: 6 | AH15: 56 | AI15: 58 | AK15: =VLOOKUP($B15,'Finish Times'!$A$10:$G$40,6,FALSE) -> 
T16: n | AB16: 7 | AH16: 64 | AI16: 47 | AK16: =VLOOKUP($B16,'Finish Times'!$A$10:$G$40,6,FALSE) -> 
T17: n | AB17: 8 | AK17: =VLOOKUP($B17,'Finish Times'!$A$10:$G$40,6,FALSE) -> 
T18: n | AB18: 9 | AK18: =VLOOKUP($B18,'Finish Times'!$A$10:$G$40,6,FALSE) -> 
T19: n | AB19: 10 | AK19: =VLOOKUP($B19,'Finish Times'!$A$10:$G$40,6,FALSE) -> 
T20: s | AB20: 11 | AK20: =VLOOKUP($B20,'Finish Times'!$A$10:$G$40,6,FALSE) -> 
T21: n | AB21: 12 | AK21: =VLOOKUP($B21,'Finish Times'!$A$10:$G$40,6,FALSE) -> 
T22: n | AB22: 13 | AK22: =VLOOKUP($B22,'Finish Times'!$A$10:$G$40,6,FALSE) -> 
T23: n | AB23: 14 | AK23: =VLOOKUP($B23,'Finish Times'!$A$10:$G$40,6,FALSE) -> 
T24: n | AB24: 15 | AK24: =VLOOKUP($B24,'Finish Times'!$A$10:$G$40,6,FALSE) -> 
A25: Race Start Time | N25: FLEET THREE
A26: (In case race timer has issues, use clock time as backup and do the math) | Q26: 0 | AE26: 0
A27: (1) Convert seconds to decimal equivalent - see reference sheet | Q27: 0 | AE27: 0
A28: (2) Multiply time in minutes by circled TCF | Q28: 0 | AE28: 0
A30: FLEET THREE | M30: RACE #

Sheet Fleet 4
S1: 4 | Y1: Winner
Y2: =MIN(N10:N23) -> 38.503156
A3: ='Finish Times'!B7 -> 5 | B3: <-----Minutes after first start
A5: Blackwater Yacht Racing Association - Race Results - Fleet 4 | Z5: Test
D6: Date: | E6: ='Finish Times'!I4 -> 2017-09-09 | F6: ='Finish Times'!I5 -> 2017 Fall Series Race #2 | K6: =CONCATENATE("RC:"," ",'Finish Times'!I6) -> RC: Maloney, Tunnell | Y6: new tcf = | Z6: should =
A7: ='Finish Times'!I7 -> Windward / Leeward Course 1X for Fleets I and II, 1X for Fleets III and IV | P7: Time | Q7: Time | R7: Approx | T7: Finish Calculations | Y7: Winner Adj Time | Z7: Winner Adj Time | AC7: # of Boats
G8: Handicap | I8: TCF | K8: Finish Time | M8: Calc(1) | N8: Adj.(2) | P8: Behind | Q8: Behind | R8: H'cap | T8: S for Spin | Y8: /observed | AC8: =MAX(AC10:AC23) -> 3
A9: Skipper | B9: Boat Name | C9: Initials | D9: Guest? | E9: Boat | F9: Sail # | G9: Spin* | H9: Non-Spin* | I9: Spin* | J9: Non-Spin* | K9: Min. | L9: Sec. | M9: Min.dd | N9: Time | O9: Place | P9: Winner | Q9: Boat Ahead | R9: to win | T9: N for non
A10: DeMestro | B10: Little Wing | E10: Beneteau 29 | F10: 485 | G10: 168 | H10: =IFERROR(G10+15,"") -> 183 | I10: =IF(T10 = "s",1000/(900+G10),"") ->  | J10: =IF(T10 ="n",1000/(900+H10),"") -> 0.9233610342 | K10: =IF(AK10>0,VLOOKUP($B10,'Finish Times'!$A$10:$G$40,6,FALSE)," ") ->  | L10: =IF(AK10>0,VLOOKUP($B10,'Finish Times'!$A$10:$G$40,7,FALSE)," ") ->  | M10: =IF(AK10>0,(K10+L10/60)-A$3," ") ->  | N10: =IFERROR(U10," ") ->  | P10: =IFERROR(N10-$Y$2,"") ->  | R10: =IFERROR(ROUND((1000/Y10)-900,0),"") ->  | T10: n | U10: =IFERROR(IF(M10>0,IF(T10="s",M10*I10,0)+IF(T10="n",M10*J10,0)," "),"") ->  | V10: =IFERROR(RANK(N10,$N$10:$N$23,1),"") ->  | Y10: =IFERROR($Y$2/M10,"") ->  | Z10: =IFERROR(M10*Y10,"") ->  | AB10: 1 | AH10: 55 | AI10: 39 | AK10: =VLOOKUP($B10,'Finish Times'!$A$10:$G$40,6,FALSE) -> 0
A11: Oginz | B11: Alarming | E11: S-2 9.2 | F11: 505 | G11: =183+3+3 -> 189 | H11: =IFERROR(G11+15,"") -> 204 | I11: =IF(T11 = "s",1000/(900+G11),"") ->  | J11: =IF(T11 ="n",1000/(900+H11),"") -> 0.9057971014 | K11: =IF(AK11>0,VLOOKUP($B11,'Finish Times'!$A$10:$G$40,6,FALSE)," ") -> 47 | L11: =IF(AK11>0,VLOOKUP($B11,'Finish Times'!$A$10:$G$40,7,FALSE)," ") -> 33 | M11: =IF(AK11>0,(K11+L11/60)-A$3," ") -> 42.55 | N11: 38.54166667 | O11: 2 | P11: 0.03851067027 | Q11: 0.03851067027 | R11: 205 | T11: n | U11: =IFERROR(IF(M11>0,IF(T11="s",M11*I11,0)+IF(T11="n",M11*J11,0)," "),"") -> 38.54166667 | V11: 2 | Y11: 0.9048920328 | Z11: =IFERROR(M11*Y11,"") -> 38.503156 | AB11: 2 | AC11: 2 | AD11: 0.03851067027 | AE11: 0.03851067027 | AH11: 56 | AI11: 22 | AK11: =VLOOKUP($B11,'Finish Times'!$A$10:$G$40,6,FALSE) -> 47
A12: Gearhart | B12: More Mischief | E12: Beneteau 285 | F12: 144 | G12: =193+6 -> 199 | H12: 214 | I12: =IF(T12 = "s",1000/(900+G12),"") ->  | J12: =IF(T12 ="n",1000/(900+H12),"") -> 0.8976660682 | K12: =IF(AK12>0,VLOOKUP($B12,'Finish Times'!$A$10:$G$40,6,FALSE)," ") ->  | L12: =IF(AK12>0,VLOOKUP($B12,'Finish Times'!$A$10:$G$40,7,FALSE)," ") ->  | T12: n | AB12: 4 | AH12: 62 | AI12: 59 | AK12: =VLOOKUP($B12,'Finish Times'!$A$10:$G$40,6,FALSE) -> 0
A13: Johnson | B13: Felicite | E13: S-2 27 IB | F13: 13 | G13: =188+6 -> 194 | H13: 209 | I13: =IF(T13 = "s",1000/(900+G13),"") ->  | J13: =IF(T13 ="n",1000/(900+H13),"") -> 0.9017132552 | K13: =IF(AK13>0,VLOOKUP($B13,'Finish Times'!$A$10:$G$40,6,FALSE)," ") -> 47 | L13: =IF(AK13>0,VLOOKUP($B13,'Finish Times'!$A$10:$G$40,7,FALSE)," ") -> 42 | M13: 42.7 | N13: 38.503156 | O13: 1 | P13: 0 | R13: 209 | T13: n | U13: 38.503156 | V13: 1 | Y13: 0.9017132552 | Z13: 38.503156 | AB13: 5 | AC13: 1 | AD13: 0 | AH13: 59 | AI13: 12 | AK13: =VLOOKUP($B13,'Finish Times'!$A$10:$G$40,6,FALSE) -> 47
A14: Conover | B14: Willawaw | E14: Columbia 29 | F14: 222 | G14: 227 | H14: =IFERROR(G14+15,"") -> 242 | I14: =IF(T14 = "s",1000/(900+G14),"") ->  | J14: =IF(T14 ="n",1000/(900+H14),"") -> 0.8756567426 | K14: =IF(AK14>0,VLOOKUP($B14,'Finish Times'!$A$10:$G$40,6,FALSE)," ") -> 50 | L14: =IF(AK14>0,VLOOKUP($B14,'Finish Times'!$A$10:$G$40,7,FALSE)," ") -> 26 | M14: 45.43333333 | N14: =IFERROR(U14," ") -> 39.78400467 | O14: =IFERROR(V14," ") -> 3 | P14: =IFERROR(N14-$Y$2,"") -> 1.280848674 | Q14: 1.242338004 | R14: =IFERROR(ROUND((1000/Y14)-900,0),"") -> 280 | T14: n | U14: 39.78400467 | V14: 3 | Y14: 0.8474649155 | Z14: 38.503156 | AB14: 6 | AC14: 3 | AD14: 1.280848674 | AE14: 1.242338004 | AH14: 56 | AI14: 58 | AK14: =VLOOKUP($B14,'Finish Times'!$A$10:$G$40,6,FALSE) -> 50
A15: Gillespie | B15: Ie Ie Bang Bang | E15: Hunter 365 | F15: 8 | G15: 148 | H15: 163 | J15: 0.9407337723 | K15: =IF(AK15>0,VLOOKUP($B15,'Finish Times'!$A$10:$G$40,6,FALSE)," ") ->  | L15: =IF(AK15>0,VLOOKUP($B15,'Finish Times'!$A$10:$G$40,7,FALSE)," ") ->  | T15: n | AB15: 7 | AH15: 64 | AI15: 47 | AK15: =VLOOKUP($B15,'Finish Times'!$A$10:$G$40,6,FALSE) -> 0
N16: =IFERROR(U16," ") ->  | O16: =IFERROR(V16," ") ->  | P16: =IFERROR(N16-$Y$2,"") ->  | R16: =IFERROR(ROUND((1000/Y16)-900,0),"") ->  | T16: n | AB16: 8 | AK16: =VLOOKUP($B16,'Finish Times'!$A$10:$G$40,6,FALSE) -> 
T17: n | AB17: 9 | AK17: =VLOOKUP($B17,'Finish Times'!$A$10:$G$40,6,FALSE) -> 
T18: n | AB18: 10 | AK18: =VLOOKUP($B18,'Finish Times'!$A$10:$G$40,6,FALSE) -> 
T19: n | AB19: 11 | AK19: =VLOOKUP($B19,'Finish Times'!$A$10:$G$40,6,FALSE) -> 
T20: n | AB20: 12 | AK20: =VLOOKUP($B20,'Finish Times'!$A$10:$G$40,6,FALSE) -> 
T21: n | AB21: 13 | AK21: =VLOOKUP($B21,'Finish Times'!$A$10:$G$40,6,FALSE) -> 
T22: n | AB22: 14 | AK22: =VLOOKUP($B22,'Finish Times'!$A$10:$G$40,6,FALSE) -> 
T23: n | AB23: 15 | AK23: =VLOOKUP($B23,'Finish Times'!$A$10:$G$40,6,FALSE) -> 
A24: Race Start Time | N24: FLEET FOUR
A25: (In case race timer has issues, use clock time as backup and do the math) | Q25: 0 | AE25: 0
A26: (1) Convert seconds to decimal equivalent - see reference sheet | Q26: 0 | AE26: 0
A27: (2) Multiply time in minutes by circled TCF | Q27: 0 | AE27: 0
Q28: 0 | AE28: 0
A29: FLEET FOUR | M29: RACE #

Sheet Fleet 1 and 2 Combo
A1: Control Z to run macro | S1: 5 | Y1: Winner
Y2: =MIN(N10:N27) -> 20.14018692
A3: ='Finish Times'!B4 -> 0 | B3: <-----Minutes after first start
A5: Blackwater Yacht Racing Association - Race Results Fleets I & 2 | Z5: Test
D6: Date: | E6: ='Finish Times'!I4 -> 2017-09-09 | F6: ='Finish Times'!I5 -> 2017 Fall Series Race #2 | K6: =CONCATENATE("RC:"," ",'Finish Times'!I6) -> RC: Maloney, Tunnell | Y6: new tcf = | Z6: should =
A7: ='Finish Times'!I7 -> Windward / Leeward Course 1X for Fleets I and II, 1X for Fleets III and IV | P7: Time | Q7: Time | R7: Approx | T7: Finish Calculations | Y7: Winner Adj Time | Z7: Winner Adj Time | AC7: # of Boats
G8: Handicap | I8: TCF | K8: Finish Time | M8: Calc(1) | N8: Adj.(2) | P8: Behind | Q8: Behind | R8: H'cap | T8: S for Spin | Y8: /observed | AC8: =MAX(AC10:AC27) -> 9
A9: Skipper | B9: Boat Name | C9: Initials | D9: Guest? | E9: Boat | F9: Sail # | G9: Spin* | H9: Non-Spin* | I9: Spin* | J9: Non-Spin* | K9: Min. | L9: Sec. | M9: Min.dd | N9: Time | O9: Place | P9: Winner | Q9: Boat Ahead | R9: to win | T9: N for non
A10: Cliborne | B10: Bandit | E10: J/24 | F10: 2792 | G10: 170 | H10: =IFERROR(G10+15,"") -> 185 | I10: =IF(T10 = "s",1000/(900+G10),"") -> 0.9345794393 | J10: =IF(T10 ="n",1000/(900+H10),"") ->  | K10: =IF($AK10>0,(VLOOKUP($B10,'Finish Times'!$A$10:$G$40,6,FALSE)),"") -> 24 | L10: =IF($AK10>0,(VLOOKUP($B10,'Finish Times'!$A$10:$G$40,7,FALSE)),"") -> 42 | M10: =IF(AK10>0,(K10+L10/60)-A$3," ") -> 24.7 | N10: =IFERROR(U10," ") -> 23.08411215 | O10: 3 | P10: =IFERROR(N10-$Y$2,"") -> 2.943925234 | Q10: 2.30529595 | R10: =IFERROR(ROUND((1000/Y10)-900,0),"") -> 326 | T10: s | U10: =IFERROR(IF(M10>0,IF(T10="s",M10*I10,0)+IF(T10="n",M10*J10,0)," "),"") -> 23.08411215 | V10: =IFERROR(RANK(N10,$N$10:$N$27,1),"") -> 3 | Y10: =IFERROR($Y$2/M10,"") -> 0.8153921828 | Z10: =IFERROR(M10*Y10,"") -> 20.14018692 | AB10: 1 | AC10: 3 | AD10: 2.943925234 | AE10: 2.30529595 | AH10: 55 | AI10: 39 | AK10: =(VLOOKUP($B10,'Finish Times'!$A$10:$G$40,6,FALSE)) -> 24
A11: Forqurean | B11: Dark Horse | E11: J/24 | F11: 1024 | G11: 170 | H11: 185 | I11: 0.9345794393 | J11: =IF(T11 ="n",1000/(900+H11),"") ->  | K11: =IF($AK11>0,(VLOOKUP($B11,'Finish Times'!$A$10:$G$40,6,FALSE)),"") -> 22 | L11: =IF($AK11>0,(VLOOKUP($B11,'Finish Times'!$A$10:$G$40,7,FALSE)),"") -> 14 | M11: =IF(AK11>0,(K11+L11/60)-A$3," ") -> 22.23333333 | N11: 20.7788162 | O11: 2 | P11: 0.6386292835 | Q11: 0.6386292835 | R11: 204 | T11: s | U11: =IFERROR(IF(M11>0,IF(T11="s",M11*I11,0)+IF(T11="n",M11*J11,0)," "),"") -> 20.7788162 | V11: 2 | Y11: 0.9058554835 | Z11: =IFERROR(M11*Y11,"") -> 20.14018692 | AB11: 2 | AC11: 2 | AD11: 0.6386292835 | AE11: 0.6386292835 | AH11: 56 | AI11: 22 | AK11: =(VLOOKUP($B11,'Finish Times'!$A$10:$G$40,6,FALSE)) -> 22
A12: Maloney | B12: Boogie Board | E12: J/24 | F12: 1742 | G12: 170 | H12: 185 | I12: 0.9345794393 | J12: =IF(T12 ="n",1000/(900+H12),"") ->  | K12: =IF($AK12>0,(VLOOKUP($B12,'Finish Times'!$A$10:$G$40,6,FALSE)),"") ->  | L12: =IF($AK12>0,(VLOOKUP($B12,'Finish Times'!$A$10:$G$40,7,FALSE)),"") ->  | T12: s | AB12: 3 | AH12: 54 | AI12: 9 | AK12: =(VLOOKUP($B12,'Finish Times'!$A$10:$G$40,6,FALSE)) -> 0
A13: Phillip | B13: Rascal | E13: J/24 | F13: 3511 | G13: 170 | H13: 185 | I13: 0.9345794393 | J13: =IF(T13 ="n",1000/(900+H13),"") ->  | K13: =IF($AK13>0,(VLOOKUP($B13,'Finish Times'!$A$10:$G$40,6,FALSE)),"") -> 21 | L13: =IF($AK13>0,(VLOOKUP($B13,'Finish Times'!$A$10:$G$40,7,FALSE)),"") -> 33 | M13: 21.55 | N13: 20.14018692 | O13: 1 | P13: 0 | R13: 170 | T13: s | U13: 20.14018692 | V13: 1 | Y13: 0.9345794393 | Z13: 20.14018692 | AB13: 4 | AC13: 1 | AD13: 0 | AH13: 62 | AI13: 59 | AK13: =(VLOOKUP($B13,'Finish Times'!$A$10:$G$40,6,FALSE)) -> 21
A14: Sampson | B14: Time Warp | E14: J/24 | F14: 1248 | G14: 170 | H14: 185 | I14: 0.9345794393 | J14: =IF(T14 ="n",1000/(900+H14),"") ->  | K14: =IF($AK14>0,(VLOOKUP($B14,'Finish Times'!$A$10:$G$40,6,FALSE)),"") ->  | L14: =IF($AK14>0,(VLOOKUP($B14,'Finish Times'!$A$10:$G$40,7,FALSE)),"") ->  | T14: s | AB14: 5 | AH14: 59 | AI14: 12 | AK14: =(VLOOKUP($B14,'Finish Times'!$A$10:$G$40,6,FALSE)) -> 0
A15: Schiable | B15: Catch 22 | E15: J22 | F15: 826 | G15: 177 | H15: =IFERROR(G15+15,"") -> 192 | I15: =IF(T15 = "s",1000/(900+G15),"") -> 0.9285051068 | J15: =IF(T15 ="n",1000/(900+H15),"") ->  | K15: =IF($AK15>0,(VLOOKUP($B15,'Finish Times'!$A$10:$G$40,6,FALSE)),"") -> 25 | L15: =IF($AK15>0,(VLOOKUP($B15,'Finish Times'!$A$10:$G$40,7,FALSE)),"") -> 17 | M15: =IF(AK15>0,(K15+L15/60)-A$3," ") -> 25.28333333 | N15: =IFERROR(U15," ") -> 23.47570412 | O15: 4 | P15: =IFERROR(N15-$Y$2,"") -> 3.3355172 | Q15: 0.3915919668 | R15: =IFERROR(ROUND((1000/Y15)-900,0),"") -> 355 | T15: s | U15: 23.47570412 | V15: 4 | Y15: 0.7965795748 | Z15: 20.14018692 | AB15: 6 | AC15: 4 | AD15: 3.3355172 | AE15: 0.3915919668 | AH15: 56 | AI15: 58 | AK15: =(VLOOKUP($B15,'Finish Times'!$A$10:$G$40,6,FALSE)) -> 25
A16: Gietl | B16: UDO | E16: VX One | F16: 119 | G16: 103 | H16: 118 | I16: 0.9970089731 | K16: =IF($AK16>0,(VLOOKUP($B16,'Finish Times'!$A$10:$G$40,6,FALSE)),"") -> 24 | L16: =IF($AK16>0,(VLOOKUP($B16,'Finish Times'!$A$10:$G$40,7,FALSE)),"") -> 59 | M16: 24.98333333 | N16: 24.90860751 | O16: 6 | P16: 4.768420595 | Q16: 0.5632118062 | R16: 340 | T16: s | U16: 24.90860751 | V16: 6 | Y16: 0.8061449066 | Z16: 20.14018692 | AB16: 7 | AC16: 6 | AD16: 4.768420595 | AE16: 0.5632118062 | AH16: 64 | AI16: 47 | AK16: =(VLOOKUP($B16,'Finish Times'!$A$10:$G$40,6,FALSE)) -> 24
T17: s | AB17: 9 | AK17: =(VLOOKUP($B17,'Finish Times'!$A$10:$G$40,6,FALSE)) -> 
T18: s | AB18: 10 | AE18: 0 | AK18: =(VLOOKUP($B18,'Finish Times'!$A$10:$G$40,6,FALSE)) -> 
A19: Theis | B19: Gotcha | E19: S-2 6.7 | F19: 75 | G19: 208 | H19: =IFERROR(G19+15,"") -> 223 | I19: =IF(T19 = "s",1000/(900+G19),"") -> 0.9025270758 | J19: =IF(T19 ="n",1000/(900+H19),"") ->  | K19: =IF($AK19>0,(VLOOKUP($B19,'Finish Times'!$A$10:$G$40,6,FALSE)),"") ->  | L19: =IF($AK19>0,(VLOOKUP($B19,'Finish Times'!$A$10:$G$40,7,FALSE)),"") ->  | M19: =IF(AK19>0,(K19+L19/60)-A$3," ") ->  | N19: =IFERROR(U19," ") ->  | P19: =IFERROR(N19-$Y$2,"") ->  | R19: =IFERROR(ROUND((1000/Y19)-900,0),"") ->  | T19: s | AB19: 11 | AK19: =(VLOOKUP($B19,'Finish Times'!$A$10:$G$40,6,FALSE)) -> 0
A20: Hull | B20: Fools Game | E20: Pearson 26 | F20: 1183 | G20: 216 | H20: 231 | I20: 0.8960573477 | K20: =IF($AK20>0,(VLOOKUP($B20,'Finish Times'!$A$10:$G$40,6,FALSE)),"") -> 40 | L20: =IF($AK20>0,(VLOOKUP($B20,'Finish Times'!$A$10:$G$40,7,FALSE)),"") -> 4 | M20: 40.06666667 | N20: 35.90203106 | O20: 9 | P20: 15.76184415 | Q20: 2.216274822 | R20: 1089 | T20: s | U20: 35.90203106 | V20: 9 | Y20: 0.5026668947 | Z20: 20.14018692 | AB20: 12 | AC20: 9 | AD20: 15.76184415 | AE20: 2.216274822 | AK20: =(VLOOKUP($B20,'Finish Times'!$A$10:$G$40,6,FALSE)) -> 40
A21: Evans | B21: Severence | E21: C&C 25 | F21: 14755 | G21: 218 | H21: 233 | I21: 0.8944543828 | K21: =IF($AK21>0,(VLOOKUP($B21,'Finish Times'!$A$10:$G$40,6,FALSE)),"") ->  | L21: =IF($AK21>0,(VLOOKUP($B21,'Finish Times'!$A$10:$G$40,7,FALSE)),"") ->  | T21: s | AB21: 13 | AK21: =(VLOOKUP($B21,'Finish Times'!$A$10:$G$40,6,FALSE)) -> 0
A22: Firing | B22: Fenix | E22: San Juan 24 | F22: 556 | G22: 218 | H22: 233 | I22: 0.8944543828 | K22: =IF(AK22>0,VLOOKUP($B22,'Finish Times'!$A$10:$G$40,6,FALSE),"") ->  | L22: =IF(AK22>0,VLOOKUP($B22,'Finish Times'!$A$10:$G$40,7,FALSE),"") ->  | T22: s | AB22: 14 | AK22: =(VLOOKUP($B22,'Finish Times'!$A$10:$G$40,6,FALSE)) -> 0
A23: Whitt | B23: Destiny | E23: Alerion 20 | F23: 6 | G23: 218 | H23: 233 | J23: 0.8826125331 | K23: =IF($AK23>0,(VLOOKUP($B23,'Finish Times'!$A$10:$G$40,6,FALSE)),"") -> 27 | L23: =IF($AK23>0,(VLOOKUP($B23,'Finish Times'!$A$10:$G$40,7,FALSE)),"") -> 35 | M23: =IF(AK23>0,(K23+L23/60)-A$3," ") -> 27.58333333 | N23: =IFERROR(U23," ") -> 24.3453957 | O23: 5 | P23: =IFERROR(N23-$Y$2,"") -> 4.205208789 | Q23: 0.8696915882 | R23: =IFERROR(ROUND((1000/Y23)-900,0),"") -> 470 | T23: n | U23: 24.3453957 | V23: 5 | Y23: 0.7301578338 | AB23: 15 | AC23: 5 | AD23: 4.205208789 | AE23: 0.8696915882 | AK23: =(VLOOKUP($B23,'Finish Times'!$A$10:$G$40,6,FALSE)) -> 27
A24: Miekina | B24: Synergy | E24: Harbor 20 | F24: 215 | G24: 220 | H24: =IFERROR(G24+15,"") -> 235 | I24: =IF(T24 = "s",1000/(900+G24),"") ->  | J24: =IF(T24 ="n",1000/(900+H24),"") -> 0.8810572687 | K24: =IF($AK24>0,(VLOOKUP($B24,'Finish Times'!$A$10:$G$40,6,FALSE)),"") ->  | L24: =IF($AK24>0,(VLOOKUP($B24,'Finish Times'!$A$10:$G$40,7,FALSE)),"") ->  | T24: n | AB24: 16 | AK24: =(VLOOKUP($B24,'Finish Times'!$A$10:$G$40,6,FALSE)) -> 0
A25: Hemler | B25: Stoic | E25: Harbor 20 | F25: 330 | G25: 220 | H25: 235 | J25: 0.8810572687 | K25: =IF($AK25>0,(VLOOKUP($B25,'Finish Times'!$A$10:$G$40,6,FALSE)),"") -> 30 | L25: =IF($AK25>0,(VLOOKUP($B25,'Finish Times'!$A$10:$G$40,7,FALSE)),"") -> 58 | M25: 30.96666667 | N25: 27.28340675 | O25: 7 | P25: 7.143219839 | Q25: 2.374799244 | R25: 638 | T25: n | U25: 27.28340675 | V25: 7 | Y25: 0.6503827852 | AB25: 17 | AC25: 7 | AD25: 7.143219839 | AE25: 2.374799244 | AK25: =(VLOOKUP($B25,'Finish Times'!$A$10:$G$40,6,FALSE)) -> 30
A26: Toone | B26: StressLess | E26: Harbor 20 | F26: 212 | G26: 220 | H26: 235 | J26: 0.8810572687 | K26: =IF($AK26>0,(VLOOKUP($B26,'Finish Times'!$A$10:$G$40,6,FALSE)),"") -> 38 | L26: =IF($AK26>0,(VLOOKUP($B26,'Finish Times'!$A$10:$G$40,7,FALSE)),"") -> 14 | M26: 38.23333333 | N26: 33.68575624 | O26: 8 | P26: 13.54556932 | Q26: 6.402349486 | R26: 998 | T26: n | U26: 33.68575624 | V26: 8 | Y26: 0.526770364 | Z26: 20.14018692 | AB26: 18 | AC26: 8 | AD26: 13.54556932 | AE26: 6.402349486 | AK26: =(VLOOKUP($B26,'Finish Times'!$A$10:$G$40,6,FALSE)) -> 38
A27: Tunnell | B27: Courageous | E27: Harbor 20 | F27: 278 | G27: 220 | H27: 235 | J27: 0.8810572687 | K27: =IF($AK27>0,(VLOOKUP($B27,'Finish Times'!$A$10:$G$40,6,FALSE)),"") ->  | L27: =IF($AK27>0,(VLOOKUP($B27,'Finish Times'!$A$10:$G$40,7,FALSE)),"") ->  | T27: n | AB27: 19 | AK27: =(VLOOKUP($B27,'Finish Times'!$A$10:$G$40,6,FALSE)) -> 0
AB28: 20
A29: (In case race timer has issues, use clock time as backup and do the math)
A30: (1) Convert seconds to decimal equivalent - see reference sheet
A31: (2) Multiply time in minutes by circled TCF
A33: FLEET ONE | M33: RACE #

Sheet Fleet 3 and 4 Combo
S1: 6 | Y1: Winner
Y2: =MIN(N10:N23) -> 34.21128382
A3: ='Finish Times'!B6 -> 5 | B3: <-----Minutes after first start
A5: Blackwater Yacht Racing Association - Race Results Fleets 3 & 4 | Z5: Test
D6: Date: | E6: ='Finish Times'!I4 -> 2017-09-09 | F6: ='Finish Times'!I5 -> 2017 Fall Series Race #2 | K6: =CONCATENATE("RC:"," ",'Finish Times'!I6) -> RC: Maloney, Tunnell | Y6: new tcf = | Z6: should =
A7: ='Finish Times'!I7 -> Windward / Leeward Course 1X for Fleets I and II, 1X for Fleets III and IV | P7: Time | Q7: Time | R7: Approx | T7: Finish Calculations | Y7: Winner Adj Time | Z7: Winner Adj Time | AC7: # of Boats
G8: Handicap | I8: TCF | K8: Finish Time | M8: Calc(1) | N8: Adj.(2) | P8: Behind | Q8: Behind | R8: H'cap | T8: S for Spin | Y8: /observed | AC8: =MAX(AC10:AC23) -> 6
A9: Skipper | B9: Boat Name | C9: Initials | D9: Guest? | E9: Boat | F9: Sail # | G9: Spin* | H9: Non-Spin* | I9: Spin* | J9: Non-Spin* | K9: Min. | L9: Sec. | M9: Min.dd | N9: Time | O9: Place | P9: Winner | Q9: Boat Ahead | R9: to win | T9: N for non
A10: Perdue | B10: Miss Virginia | E10: Hunter 23.5 | F10: 1309 | G10: 243 | H10: =IFERROR(G10+15,"") -> 258 | I10: =IF(T10 = "s",1000/(900+G10),"") -> 0.8748906387 | J10: =IF(T10 ="n",1000/(900+H10),"") ->  | K10: =IF($AK10>0,(VLOOKUP($B10,'Finish Times'!$A$10:$G$40,6,FALSE)),"") ->  | L10: =IF($AK10>0,(VLOOKUP($B10,'Finish Times'!$A$10:$G$40,7,FALSE)),"") ->  | M10: =IF(AK10>0,(K10+L10/60)-A$3," ") ->  | N10: =IFERROR(U10," ") ->  | P10: =IFERROR(N10-$Y$2,"") ->  | R10: =IFERROR(ROUND((1000/Y10)-900,0),"") ->  | T10: s | U10: =IFERROR(IF(M10>0,IF(T10="s",M10*I10,0)+IF(T10="n",M10*J10,0)," "),"") ->  | V10: =IFERROR(RANK(N10,$N$10:$N$23,1),"") ->  | Y10: =IFERROR($Y$2/M10,"") ->  | Z10: =IFERROR(M10*Y10,"") ->  | AB10: 1 | AH10: 55 | AI10: 39 | AK10: =(VLOOKUP($B10,'Finish Times'!$A$10:$G$40,6,FALSE)) -> 0
A11: Schraw | B11: Second Wind | E11: Ericson 23 | F11: 470 | G11: 241 | H11: =IFERROR(G11+15,"") -> 256 | I11: =IF(T11 = "s",1000/(900+G11),"") ->  | J11: =IF(T11 ="n",1000/(900+H11),"") -> 0.8650519031 | K11: =IF($AK11>0,(VLOOKUP($B11,'Finish Times'!$A$10:$G$40,6,FALSE)),"") -> 47 | L11: =IF($AK11>0,(VLOOKUP($B11,'Finish Times'!$A$10:$G$40,7,FALSE)),"") -> 20 | M11: 42.33333333 | N11: 36.62053057 | O11: 3 | P11: 2.409246742 | Q11: 0.1215424183 | R11: 337 | T11: n | U11: =IFERROR(IF(M11>0,IF(T11="s",M11*I11,0)+IF(T11="n",M11*J11,0)," "),"") -> 36.62053057 | V11: 3 | Y11: 0.8081405627 | Z11: =IFERROR(M11*Y11,"") -> 34.21128382 | AB11: 2 | AC11: 3 | AD11: 2.409246742 | AE11: 0.1215424183 | AH11: 56 | AI11: 22 | AK11: =(VLOOKUP($B11,'Finish Times'!$A$10:$G$40,6,FALSE)) -> 47
A12: Short | B12: Fever | E12: Ericson 23 | F12: 269 | G12: =241+3 -> 244 | H12: 259 | I12: =IF(T12 = "s",1000/(900+G12),"") ->  | J12: =IF(T12 ="n",1000/(900+H12),"") -> 0.8628127696 | K12: =IF($AK12>0,(VLOOKUP($B12,'Finish Times'!$A$10:$G$40,6,FALSE)),"") ->  | L12: =IF($AK12>0,(VLOOKUP($B12,'Finish Times'!$A$10:$G$40,7,FALSE)),"") ->  | M12: =IF(AK12>0,(K12+L12/60)-A$3," ") ->  | N12: =IFERROR(U12," ") ->  | O12: =IFERROR(V12," ") ->  | P12: =IFERROR(N12-$Y$2,"") ->  | R12: =IFERROR(ROUND((1000/Y12)-900,0),"") ->  | T12: n | AB12: 3 | AH12: 54 | AI12: 9 | AK12: =(VLOOKUP($B12,'Finish Times'!$A$10:$G$40,6,FALSE)) -> 0
A13: Gobble | B13: Always Something | E13: Hunter 23 | F13: 1256 | G13: 243 | H13: 258 | I13: =IF(T13 = "s",1000/(900+G13),"") ->  | J13: =IF(T13 ="n",1000/(900+H13),"") -> 0.8635578584 | K13: =IF($AK13>0,(VLOOKUP($B13,'Finish Times'!$A$10:$G$40,6,FALSE)),"") -> 44 | L13: =IF($AK13>0,(VLOOKUP($B13,'Finish Times'!$A$10:$G$40,7,FALSE)),"") -> 37 | M13: 39.61666667 | N13: 34.21128382 | O13: 1 | P13: 0 | R13: 258 | T13: n | U13: 34.21128382 | V13: 1 | Y13: 0.8635578584 | Z13: 34.21128382 | AB13: 4 | AC13: 1 | AD13: 0 | AH13: 62 | AI13: 59 | AK13: =(VLOOKUP($B13,'Finish Times'!$A$10:$G$40,6,FALSE)) -> 44
A14: Perdue | B14: Debra Ann | E14: O'Day 25 CB | F14: 13092 | G14: 238 | H14: 253 | I14: =IF(T14 = "s",1000/(900+G14),"") ->  | J14: =IF(T14 ="n",1000/(900+H14),"") -> 0.8673026886 | K14: =IF($AK14>0,(VLOOKUP($B14,'Finish Times'!$A$10:$G$40,6,FALSE)),"") -> 47 | L14: =IF($AK14>0,(VLOOKUP($B14,'Finish Times'!$A$10:$G$40,7,FALSE)),"") -> 5 | M14: 42.08333333 | N14: 36.49898815 | O14: 2 | P14: 2.287704324 | Q14: 2.287704324 | R14: 330 | T14: n | U14: 36.49898815 | V14: 2 | Y14: 0.8129413978 | Z14: 34.21128382 | AB14: 5 | AC14: 2 | AD14: 2.287704324 | AE14: 2.287704324 | AH14: 59 | AI14: 12 | AK14: =(VLOOKUP($B14,'Finish Times'!$A$10:$G$40,6,FALSE)) -> 47
A15: DeMestro | B15: Little Wing | E15: Beneteau 29 | F15: 485 | G15: 168 | H15: =IFERROR(G15+15,"") -> 183 | I15: =IF(T15 = "s",1000/(900+G15),"") ->  | J15: =IF(T15 ="n",1000/(900+H15),"") -> 0.9233610342 | K15: =IF($AK15>0,(VLOOKUP($B15,'Finish Times'!$A$10:$G$40,6,FALSE)),"") ->  | L15: =IF($AK15>0,(VLOOKUP($B15,'Finish Times'!$A$10:$G$40,7,FALSE)),"") ->  | N15: =IFERROR(U15," ") ->  | O15: =IFERROR(V15," ") ->  | P15: =IFERROR(N15-$Y$2,"") ->  | R15: =IFERROR(ROUND((1000/Y15)-900,0),"") ->  | T15: n | AB15: 6 | AH15: 56 | AI15: 58 | AK15: =(VLOOKUP($B15,'Finish Times'!$A$10:$G$40,6,FALSE)) -> 0
A16: Oginz | B16: Alarming | E16: S-2 9.2 | F16: 505 | G16: =183+3+3 -> 189 | H16: 204 | J16: 0.9057971014 | K16: =IF($AK16>0,(VLOOKUP($B16,'Finish Times'!$A$10:$G$40,6,FALSE)),"") -> 47 | L16: =IF($AK16>0,(VLOOKUP($B16,'Finish Times'!$A$10:$G$40,7,FALSE)),"") -> 33 | M16: 42.55 | N16: 38.54166667 | O16: 5 | P16: 4.330382844 | Q16: 0.03851067027 | R16: 344 | T16: n | U16: 38.54166667 | V16: 5 | Y16: 0.8040254717 | Z16: 34.21128382 | AB16: 7 | AC16: 5 | AD16: 4.330382844 | AE16: 0.03851067027 | AH16: 64 | AI16: 47 | AK16: =(VLOOKUP($B16,'Finish Times'!$A$10:$G$40,6,FALSE)) -> 47
A17: Gearhart | B17: More Mischief | E17: Beneteau 285 | F17: 144 | G17: =193+6 -> 199 | H17: 214 | J17: 0.8976660682 | K17: =IF($AK17>0,(VLOOKUP($B17,'Finish Times'!$A$10:$G$40,6,FALSE)),"") ->  | L17: =IF($AK17>0,(VLOOKUP($B17,'Finish Times'!$A$10:$G$40,7,FALSE)),"") ->  | M17: =IF(AK17>0,(K17+L17/60)-A$3," ") ->  | T17: n | AB17: 9 | AK17: =(VLOOKUP($B17,'Finish Times'!$A$10:$G$40,6,FALSE)) -> 0
A18: Johnson | B18: Felicite | E18: S-2 27 IB | F18: 13 | G18: =188+6 -> 194 | H18: 209 | J18: 0.9017132552 | K18: =IF($AK18>0,(VLOOKUP($B18,'Finish Times'!$A$10:$G$40,6,FALSE)),"") -> 47 | L18: =IF($AK18>0,(VLOOKUP($B18,'Finish Times'!$A$10:$G$40,7,FALSE)),"") -> 42 | M18: 42.7 | N18: 38.503156 | O18: 4 | P18: 4.291872174 | Q18: 1.882625431 | R18: 348 | T18: n | U18: 38.503156 | V18: 4 | Y18: 0.8012010263 | Z18: 34.21128382 | AB18: 10 | AC18: 4 | AD18: 4.291872174 | AE18: 1.882625431 | AK18: =(VLOOKUP($B18,'Finish Times'!$A$10:$G$40,6,FALSE)) -> 47
A19: Conover | B19: Willawaw | E19: Columbia 29 | F19: 222 | G19: 227 | H19: 242 | J19: 0.8756567426 | K19: =IF($AK19>0,(VLOOKUP($B19,'Finish Times'!$A$10:$G$40,6,FALSE)),"") -> 50 | L19: =IF($AK19>0,(VLOOKUP($B19,'Finish Times'!$A$10:$G$40,7,FALSE)),"") -> 26 | M19: 45.43333333 | N19: 39.78400467 | O19: 6 | P19: 5.572720847 | Q19: 1.242338004 | R19: 428 | T19: n | U19: 39.78400467 | V19: 6 | Y19: 0.7529996439 | Z19: 34.21128382 | AB19: 11 | AC19: 6 | AD19: 5.572720847 | AE19: 1.242338004 | AK19: =(VLOOKUP($B19,'Finish Times'!$A$10:$G$40,6,FALSE)) -> 50
A20: Gillespie | B20: Ie Ie Bang Bang | E20: Hunter 365 | F20: 8 | G20: 148 | H20: 163 | J20: 0.9407337723 | K20: =IF($AK20>0,(VLOOKUP($B20,'Finish Times'!$A$10:$G$40,6,FALSE)),"") ->  | L20: =IF($AK20>0,(VLOOKUP($B20,'Finish Times'!$A$10:$G$40,7,FALSE)),"") ->  | T20: n | AB20: 12 | AK20: =(VLOOKUP($B20,'Finish Times'!$A$10:$G$40,6,FALSE)) -> 0
N21: =IFERROR(U21," ") ->  | O21: =IFERROR(V21," ") ->  | P21: =IFERROR(N21-$Y$2,"") ->  | R21: =IFERROR(ROUND((1000/Y21)-900,0),"") ->  | T21: n | AB21: 13 | AK21: =(VLOOKUP($B21,'Finish Times'!$A$10:$G$40,6,FALSE)) -> 
T22: n | AB22: 14 | AK22: =(VLOOKUP($B22,'Finish Times'!$A$10:$G$40,6,FALSE)) -> 
T23: n | AB23: 15 | AK23: =(VLOOKUP($B23,'Finish Times'!$A$10:$G$40,6,FALSE)) -> 
A24: Race Start Time | N24: FLEET THREE & FOUR | AB24: 16 | AK24: =(VLOOKUP($B24,'Finish Times'!$A$10:$G$40,6,FALSE)) -> 
A25: (In case race timer has issues, use clock time as backup and do the math) | Q25: 0 | AB25: 17 | AE25: 0 | AK25: =(VLOOKUP($B25,'Finish Times'!$A$10:$G$40,6,FALSE)) -> 
A26: (1) Convert seconds to decimal equivalent - see reference sheet | Q26: 0 | AB26: 18 | AE26: 0 | AK26: =(VLOOKUP($B26,'Finish Times'!$A$10:$G$40,6,FALSE)) -> 
A27: (2) Multiply time in minutes by circled TCF | Q27: 0 | AB27: 19 | AE27: 0 | AK27: =(VLOOKUP($B27,'Finish Times'!$A$10:$G$40,6,FALSE)) -> 
Q28: 0 | AE28: 0
A29: FLEET THREE | M29: RACE #
